[Event "Titled Tuesday Blitz March 07 Early 2023"]
[White "Vokhidov, Shamsiddin"]
[Black "Hakobyan, Aram"]
[WhiteFideId "14204223"]
[BlackFideId "13306677"]
[WhiteElo "2570"]
[BlackElo "2563"]
[Result "1-0"]
[Round "09"]
[TimeControl "180+2"]
[Date "2023.03.07"]
[WhiteClock "0:00:13"]
[BlackClock "0:00:12"]

1. e4 {[%clk 0:03:00]}  g6 {[%clk 0:02:59]} 2. d4 {[%clk 0:03:01]}  Bg7 {[%clk 0:03:00]} 3. Nf3 {[%clk 0:03:01]}  Nf6 {[%clk 0:02:59]} 4. e5 {[%clk 0:03:01]}  Ne4 {[%clk 0:02:59]} 5. Bd3 {[%clk 0:02:57]}  d5 {[%clk 0:03:00]} 6. exd6 {[%clk 0:02:47]}  Nxd6 {[%clk 0:02:59]} 7. O-O {[%clk 0:02:46]}  Bg4 {[%clk 0:02:58]} 8. c3 {[%clk 0:02:43]}  Nd7 {[%clk 0:02:58]} 9. h3 {[%clk 0:02:41]}  Bxf3 {[%clk 0:02:58]} 10. Qxf3 {[%clk 0:02:41]}  e5 {[%clk 0:02:57]} 11. dxe5 {[%clk 0:02:16]}  Nxe5 {[%clk 0:02:58]} 12. Qe2 {[%clk 0:02:17]}  O-O {[%clk 0:02:58]} 13. Be3 {[%clk 0:02:09]}  Re8 {[%clk 0:02:56]} 14. Nd2 {[%clk 0:02:07]}  Nxd3 {[%clk 0:02:56]} 15. Qxd3 {[%clk 0:02:08]}  Nf5 {[%clk 0:02:56]} 16. Qxd8 {[%clk 0:02:04]}  Raxd8 {[%clk 0:02:56]} 17. Bf4 {[%clk 0:02:02]}  Re2 {[%clk 0:02:48]} 18. Rfd1 {[%clk 0:01:56]}  Bh6 {[%clk 0:02:29]} 19. Bxh6 {[%clk 0:01:19]}  Nxh6 {[%clk 0:02:30]} 20. Nc4 {[%clk 0:01:16]}  Rxd1+ {[%clk 0:02:28]} 21. Rxd1 {[%clk 0:01:17]}  b5 {[%clk 0:02:28]} 22. Nd2 {[%clk 0:01:17]}  Nf5 {[%clk 0:02:26]} 23. Kf1 {[%clk 0:01:17]}  Re6 {[%clk 0:02:25]} 24. Nb3 {[%clk 0:01:16]}  Nd6 {[%clk 0:02:21]} 25. Nd4 {[%clk 0:01:15]}  Re8 {[%clk 0:02:19]} 26. Nc6 {[%clk 0:01:11]}  a6 {[%clk 0:02:19]} 27. Nb4 {[%clk 0:01:10]}  Ra8 {[%clk 0:01:51]} 28. Nd5 {[%clk 0:01:08]}  Ne8 {[%clk 0:01:51]} 29. Ne7+ {[%clk 0:01:06]}  Kf8 {[%clk 0:01:51]} 30. Rd7 {[%clk 0:01:06]}  c5 {[%clk 0:01:14]} 31. Nd5 {[%clk 0:01:01]}  c4 {[%clk 0:01:11]} 32. f4 {[%clk 0:00:57]}  Rc8 {[%clk 0:01:11]} 33. Kf2 {[%clk 0:00:56]}  Rc6 {[%clk 0:01:10]} 34. g4 {[%clk 0:00:51]}  Rd6 {[%clk 0:01:09]} 35. Rxd6 {[%clk 0:00:48]}  Nxd6 {[%clk 0:01:09]} 36. Ke3 {[%clk 0:00:48]}  f5 {[%clk 0:01:02]} 37. g5 {[%clk 0:00:47]}  Ne4 {[%clk 0:01:00]} 38. Nc7 {[%clk 0:00:44]}  Nc5 {[%clk 0:00:58]} 39. Kd4 {[%clk 0:00:38]}  Nd3 {[%clk 0:00:55]} 40. Nxa6 {[%clk 0:00:38]}  Nxf4 {[%clk 0:00:53]} 41. Nc7 {[%clk 0:00:36]}  Ne2+ {[%clk 0:00:52]} 42. Ke5 {[%clk 0:00:34]}  Nc1 {[%clk 0:00:43]} 43. Nxb5 {[%clk 0:00:32]}  Nd3+ {[%clk 0:00:44]} 44. Kd4 {[%clk 0:00:29]}  Nxb2 {[%clk 0:00:45]} 45. Nd6 {[%clk 0:00:20]}  f4 {[%clk 0:00:45]} 46. Nxc4 {[%clk 0:00:20]}  f3 {[%clk 0:00:43]} 47. Nd2 {[%clk 0:00:18]}  f2 {[%clk 0:00:44]} 48. Nf1 {[%clk 0:00:18]}  Ke7 {[%clk 0:00:42]} 49. c4 {[%clk 0:00:14]}  Kd6 {[%clk 0:00:42]} 50. Ke3 {[%clk 0:00:13]}  Nxc4+ {[%clk 0:00:28]} 51. Kxf2 {[%clk 0:00:14]}  Ke5 {[%clk 0:00:29]} 52. Kf3 {[%clk 0:00:12]}  Kf5 {[%clk 0:00:27]} 53. Ne3+ {[%clk 0:00:12]}  Nxe3 {[%clk 0:00:12]} 54. Kxe3 {[%clk 0:00:13]} 1-0


[Site "https://www.chess.com"]

[Event "Titled Tuesday Blitz March 07 Early 2023"]
[White "Corrales Jimenez, Fidel"]
[Black "Oparin, Grigoriy"]
[WhiteFideId "3506690"]
[BlackFideId "24125890"]
[WhiteElo "2541"]
[BlackElo "2641"]
[Result "0-1"]
[Round "09"]
[TimeControl "180+2"]
[Date "2023.03.07"]
[WhiteClock "0:00:02"]
[BlackClock "0:01:30"]

1. e4 {[%clk 0:02:53]}  c5 {[%clk 0:02:50]} 2. Nf3 {[%clk 0:02:54]}  d6 {[%clk 0:02:50]} 3. d4 {[%clk 0:02:54]}  cxd4 {[%clk 0:02:51]} 4. Nxd4 {[%clk 0:02:55]}  Nf6 {[%clk 0:02:52]} 5. Nc3 {[%clk 0:02:55]}  Nc6 {[%clk 0:02:53]} 6. Bg5 {[%clk 0:02:55]}  e6 {[%clk 0:02:52]} 7. Qd2 {[%clk 0:02:55]}  a6 {[%clk 0:02:53]} 8. O-O-O {[%clk 0:02:55]}  Bd7 {[%clk 0:02:54]} 9. Nxc6 {[%clk 0:02:55]}  Bxc6 {[%clk 0:02:52]} 10. Qe1 {[%clk 0:02:55]}  h6 {[%clk 0:02:48]} 11. Bf4 {[%clk 0:02:51]}  Qa5 {[%clk 0:02:36]} 12. f3 {[%clk 0:02:49]}  Rd8 {[%clk 0:02:33]} 13. h4 {[%clk 0:02:48]}  Be7 {[%clk 0:02:31]} 14. Kb1 {[%clk 0:02:48]}  b5 {[%clk 0:02:24]} 15. a3 {[%clk 0:02:47]}  Qc7 {[%clk 0:02:17]} 16. h5 {[%clk 0:02:47]}  Qb7 {[%clk 0:02:14]} 17. Qg3 {[%clk 0:02:46]}  e5 {[%clk 0:02:11]} 18. Bc1 {[%clk 0:02:45]}  Kf8 {[%clk 0:02:04]} 19. Qe1 {[%clk 0:02:30]}  a5 {[%clk 0:02:01]} 20. Nd5 {[%clk 0:02:24]}  Nxd5 {[%clk 0:01:53]} 21. exd5 {[%clk 0:02:25]}  Bxd5 {[%clk 0:01:54]} 22. Qxa5 {[%clk 0:02:25]}  Rb8 {[%clk 0:01:54]} 23. Be3 {[%clk 0:02:16]}  Be6 {[%clk 0:01:51]} 24. Qb4 {[%clk 0:02:01]}  Qc7 {[%clk 0:01:41]} 25. Bxb5 {[%clk 0:01:03]}  d5 {[%clk 0:01:42]} 26. Qa4 {[%clk 0:01:04]}  Qb7 {[%clk 0:01:35]} 27. c4 {[%clk 0:00:21]}  dxc4 {[%clk 0:01:36]} 28. Qa7 {[%clk 0:00:03]}  Qxa7 {[%clk 0:01:32]} 29. Bxa7 {[%clk 0:00:04]}  Rxb5 {[%clk 0:01:32]} 30. Ka1 {[%clk 0:00:05]}  f6 {[%clk 0:01:31]} 31. Rd2 {[%clk 0:00:05]}  Kf7 {[%clk 0:01:31]} 32. Rc1 {[%clk 0:00:04]}  Ra8 {[%clk 0:01:31]} 33. Be3 {[%clk 0:00:04]}  Rb3 {[%clk 0:01:30]} 34. Re2 {[%clk 0:00:03]}  c3 {[%clk 0:01:30]} 35. Rxc3 {[%clk 0:00:03]}  Raxa3+ {[%clk 0:01:29]} 36. bxa3 {[%clk 0:00:02]}  Rxc3 {[%clk 0:01:30]} 37. Kb2 {[%clk 0:00:02]}  Rxa3 {[%clk 0:01:30]} 38. Bb6 {[%clk 0:00:02]}  Ra2+ {[%clk 0:01:30]} 0-1


[Site "https://www.chess.com"]

[Event "Titled Tuesday Blitz March 07 Early 2023"]
[White "Bharath Subramaniyam H"]
[Black "Naroditsky, Daniel"]
[WhiteFideId "46634827"]
[BlackFideId "2026961"]
[WhiteElo "2395"]
[BlackElo "2633"]
[Result "0-1"]
[Round "09"]
[TimeControl "180+2"]
[Date "2023.03.07"]
[WhiteClock "0:00:06"]
[BlackClock "0:00:05"]

1. e4 {[%clk 0:02:56]}  c5 {[%clk 0:02:53]} 2. Nf3 {[%clk 0:02:56]}  d6 {[%clk 0:02:52]} 3. Bb5+ {[%clk 0:02:53]}  Nc6 {[%clk 0:02:43]} 4. O-O {[%clk 0:02:53]}  Nf6 {[%clk 0:02:38]} 5. Re1 {[%clk 0:02:53]}  Bg4 {[%clk 0:02:38]} 6. c3 {[%clk 0:02:51]}  a6 {[%clk 0:02:35]} 7. Bf1 {[%clk 0:02:49]}  e5 {[%clk 0:02:30]} 8. a4 {[%clk 0:02:46]}  Be7 {[%clk 0:02:29]} 9. h3 {[%clk 0:02:45]}  Bh5 {[%clk 0:02:29]} 10. d3 {[%clk 0:02:45]}  O-O {[%clk 0:02:29]} 11. Na3 {[%clk 0:02:44]}  Re8 {[%clk 0:02:28]} 12. Nc4 {[%clk 0:02:42]}  Bf8 {[%clk 0:02:24]} 13. a5 {[%clk 0:02:38]}  Rb8 {[%clk 0:02:21]} 14. Bg5 {[%clk 0:02:26]}  h6 {[%clk 0:02:10]} 15. Bxf6 {[%clk 0:02:22]}  Qxf6 {[%clk 0:02:09]} 16. Be2 {[%clk 0:02:23]}  Qd8 {[%clk 0:01:58]} 17. Nfd2 {[%clk 0:02:14]}  Bxe2 {[%clk 0:01:46]} 18. Qxe2 {[%clk 0:02:12]}  d5 {[%clk 0:01:45]} 19. exd5 {[%clk 0:02:09]}  Qxd5 {[%clk 0:01:46]} 20. Nb6 {[%clk 0:02:07]}  Qd6 {[%clk 0:01:46]} 21. Ndc4 {[%clk 0:02:05]}  Qc7 {[%clk 0:01:34]} 22. Qe4 {[%clk 0:01:47]}  Rbd8 {[%clk 0:01:33]} 23. Re3 {[%clk 0:01:47]}  Re6 {[%clk 0:01:23]} 24. Rf3 {[%clk 0:01:27]}  g6 {[%clk 0:01:08]} 25. Nd5 {[%clk 0:01:15]}  Qb8 {[%clk 0:01:08]} 26. Nce3 {[%clk 0:00:51]}  Bg7 {[%clk 0:01:01]} 27. h4 {[%clk 0:00:44]}  h5 {[%clk 0:01:00]} 28. Qc4 {[%clk 0:00:32]}  e4 {[%clk 0:00:58]} 29. Rh3 {[%clk 0:00:24]}  exd3 {[%clk 0:00:56]} 30. Qxd3 {[%clk 0:00:23]}  Ne5 {[%clk 0:00:51]} 31. Qc2 {[%clk 0:00:23]}  Ng4 {[%clk 0:00:46]} 32. c4 {[%clk 0:00:24]}  Bd4 {[%clk 0:00:44]} 33. Re1 {[%clk 0:00:15]}  Rde8 {[%clk 0:00:42]} 34. Kf1 {[%clk 0:00:11]}  Qe5 {[%clk 0:00:35]} 35. Re2 {[%clk 0:00:10]}  Qd6 {[%clk 0:00:27]} 36. Ke1 {[%clk 0:00:09]}  Bxe3 {[%clk 0:00:19]} 37. Nxe3 {[%clk 0:00:08]}  Qd4 {[%clk 0:00:16]} 38. Qc3 {[%clk 0:00:04]}  Qe4 {[%clk 0:00:11]} 39. Rf3 {[%clk 0:00:03]}  Qb1+ {[%clk 0:00:10]} 40. Kd2 {[%clk 0:00:03]}  Ne5 {[%clk 0:00:07]} 41. Rf4 {[%clk 0:00:02]}  Rd8+ {[%clk 0:00:03]} 42. Nd5 {[%clk 0:00:02]}  Nxc4+ {[%clk 0:00:04]} 43. Qxc4 {[%clk 0:00:03]}  Rxd5+ {[%clk 0:00:02]} 44. Qxd5 {[%clk 0:00:01]}  Qxb2+ {[%clk 0:00:03]} 45. Kd1 {[%clk 0:00:02]}  Qb1+ {[%clk 0:00:03]} 46. Kd2 {[%clk 0:00:02]}  Qb2+ {[%clk 0:00:04]} 47. Kd1 {[%clk 0:00:02]}  Qxe2+ {[%clk 0:00:04]} 48. Kc1 {[%clk 0:00:03]}  Qe1+ {[%clk 0:00:05]} 49. Kc2 {[%clk 0:00:04]}  Re2+ {[%clk 0:00:06]} 50. Kb3 {[%clk 0:00:04]}  Qb1+ {[%clk 0:00:06]} 51. Kc3 {[%clk 0:00:05]}  Qb2+ {[%clk 0:00:04]} 52. Kc4 {[%clk 0:00:04]}  Rc2+ {[%clk 0:00:04]} 53. Kd3 {[%clk 0:00:04]}  Rd2+ {[%clk 0:00:05]} 54. Kc4 {[%clk 0:00:04]}  Qa2+ {[%clk 0:00:05]} 55. Kxc5 {[%clk 0:00:04]}  Qxd5+ {[%clk 0:00:05]} 56. Kb6 {[%clk 0:00:04]}  Rb2+ {[%clk 0:00:04]} 57. Ka7 {[%clk 0:00:04]}  Qxa5 {[%clk 0:00:05]} 58. Rc4 {[%clk 0:00:04]}  Qb5 {[%clk 0:00:05]} 59. Rc8+ {[%clk 0:00:04]}  Kg7 {[%clk 0:00:06]} 60. f4 {[%clk 0:00:05]}  a5 {[%clk 0:00:06]} 61. f5 {[%clk 0:00:05]}  gxf5 {[%clk 0:00:06]} 62. g4 {[%clk 0:00:05]}  fxg4 {[%clk 0:00:06]} 63. Kb8 {[%clk 0:00:06]}  a4 {[%clk 0:00:06]} 64. Rc7 {[%clk 0:00:06]}  a3 {[%clk 0:00:05]} 0-1


[Site "https://www.chess.com"]

[Event "Titled Tuesday Blitz March 07 Early 2023"]
[White "Movahed, Sina"]
[Black "Duda, Jan-Krzysztof"]
[WhiteFideId "42520835"]
[BlackFideId "1170546"]
[WhiteElo "2225"]
[BlackElo "2790"]
[Result "0-1"]
[Round "09"]
[TimeControl "180+2"]
[Date "2023.03.07"]
[WhiteClock "0:00:19"]
[BlackClock "0:00:43"]

1. e4 {[%clk 0:03:00]}  Nc6 {[%clk 0:02:58]} 2. Nf3 {[%clk 0:03:00]}  d6 {[%clk 0:02:58]} 3. d4 {[%clk 0:03:00]}  e5 {[%clk 0:02:56]} 4. d5 {[%clk 0:02:59]}  Nce7 {[%clk 0:02:56]} 5. c4 {[%clk 0:02:59]}  g6 {[%clk 0:02:57]} 6. Nc3 {[%clk 0:02:58]}  Bh6 {[%clk 0:02:56]} 7. Bxh6 {[%clk 0:02:57]}  Nxh6 {[%clk 0:02:57]} 8. Qd2 {[%clk 0:02:57]}  Ng4 {[%clk 0:02:55]} 9. h3 {[%clk 0:02:43]}  Nf6 {[%clk 0:02:55]} 10. Qh6 {[%clk 0:02:42]}  Nh5 {[%clk 0:02:50]} 11. Be2 {[%clk 0:02:35]}  b6 {[%clk 0:02:50]} 12. g3 {[%clk 0:02:29]}  a5 {[%clk 0:02:49]} 13. O-O-O {[%clk 0:02:24]}  Bd7 {[%clk 0:02:46]} 14. Ne1 {[%clk 0:02:24]}  Ng8 {[%clk 0:02:45]} 15. Qe3 {[%clk 0:02:24]}  Ng7 {[%clk 0:02:45]} 16. Nd3 {[%clk 0:02:24]}  Qe7 {[%clk 0:02:40]} 17. f4 {[%clk 0:02:23]}  f6 {[%clk 0:02:40]} 18. Rdf1 {[%clk 0:02:13]}  exf4 {[%clk 0:02:28]} 19. gxf4 {[%clk 0:02:13]}  Nh6 {[%clk 0:02:28]} 20. Rhg1 {[%clk 0:02:09]}  O-O {[%clk 0:02:23]} 21. Qd2 {[%clk 0:02:01]}  Nf7 {[%clk 0:02:21]} 22. h4 {[%clk 0:01:25]}  Rae8 {[%clk 0:02:15]} 23. h5 {[%clk 0:01:23]}  g5 {[%clk 0:02:13]} 24. f5 {[%clk 0:01:17]}  h6 {[%clk 0:02:09]} 25. Ne1 {[%clk 0:01:16]}  Ne5 {[%clk 0:02:07]} 26. Nc2 {[%clk 0:01:17]}  Rb8 {[%clk 0:02:02]} 27. Nd4 {[%clk 0:01:17]}  Rfc8 {[%clk 0:02:00]} 28. Kb1 {[%clk 0:01:15]}  Kh7 {[%clk 0:02:00]} 29. Rc1 {[%clk 0:01:14]}  Be8 {[%clk 0:01:59]} 30. Rh1 {[%clk 0:01:14]}  Kh8 {[%clk 0:01:42]} 31. Ne6 {[%clk 0:01:14]}  c5 {[%clk 0:01:37]} 32. Rh3 {[%clk 0:01:10]}  a4 {[%clk 0:01:35]} 33. Nd1 {[%clk 0:01:05]}  Rb7 {[%clk 0:01:33]} 34. Ra3 {[%clk 0:01:01]}  Ra8 {[%clk 0:01:33]} 35. Nc3 {[%clk 0:01:00]}  Kh7 {[%clk 0:01:29]} 36. Qd1 {[%clk 0:00:56]}  Ra5 {[%clk 0:01:28]} 37. Qd2 {[%clk 0:00:47]}  Bd7 {[%clk 0:01:26]} 38. Nd1 {[%clk 0:00:45]}  Ne8 {[%clk 0:01:25]} 39. Ne3 {[%clk 0:00:44]}  Nc7 {[%clk 0:01:25]} 40. Ng4 {[%clk 0:00:43]}  Nxg4 {[%clk 0:01:24]} 41. Bxg4 {[%clk 0:00:43]}  Na6 {[%clk 0:01:24]} 42. Rg3 {[%clk 0:00:40]}  Be8 {[%clk 0:01:23]} 43. a3 {[%clk 0:00:40]}  Nb8 {[%clk 0:01:24]} 44. e5 {[%clk 0:00:39]}  Nd7 {[%clk 0:01:19]} 45. exd6 {[%clk 0:00:36]}  Qxd6 {[%clk 0:01:19]} 46. Re3 {[%clk 0:00:36]}  Ne5 {[%clk 0:01:20]} 47. Be2 {[%clk 0:00:36]}  Ra8 {[%clk 0:01:20]} 48. Re1 {[%clk 0:00:36]}  Rab8 {[%clk 0:01:19]} 49. Bf1 {[%clk 0:00:37]}  b5 {[%clk 0:01:19]} 50. Rxe5 {[%clk 0:00:20]}  fxe5 {[%clk 0:01:19]} 51. f6 {[%clk 0:00:20]}  bxc4 {[%clk 0:01:10]} 52. Bxc4 {[%clk 0:00:21]}  Rxb2+ {[%clk 0:01:06]} 53. Qxb2 {[%clk 0:00:22]}  Rxb2+ {[%clk 0:01:06]} 54. Kxb2 {[%clk 0:00:23]}  e4 {[%clk 0:01:01]} 55. Rxe4 {[%clk 0:00:23]}  Bxh5 {[%clk 0:01:02]} 56. Kc3 {[%clk 0:00:22]}  Qg3+ {[%clk 0:01:01]} 57. Bd3 {[%clk 0:00:22]}  Kg8 {[%clk 0:00:58]} 58. Nxc5 {[%clk 0:00:21]}  Bg6 {[%clk 0:00:55]} 59. Re7 {[%clk 0:00:21]}  Bxd3 {[%clk 0:00:45]} 60. Nxd3 {[%clk 0:00:22]}  Qd6 {[%clk 0:00:43]} 61. Re6 {[%clk 0:00:15]}  Qxd5 {[%clk 0:00:39]} 62. Rb6 {[%clk 0:00:15]}  h5 {[%clk 0:00:37]} 63. Nb2 {[%clk 0:00:12]}  Qc5+ {[%clk 0:00:33]} 64. Nc4 {[%clk 0:00:12]}  Qxb6 {[%clk 0:00:34]} 65. Nxb6 {[%clk 0:00:12]}  h4 {[%clk 0:00:35]} 66. Kd4 {[%clk 0:00:11]}  h3 {[%clk 0:00:35]} 67. Ke5 {[%clk 0:00:11]}  h2 {[%clk 0:00:35]} 68. Ke6 {[%clk 0:00:12]}  h1=Q {[%clk 0:00:35]} 69. f7+ {[%clk 0:00:12]}  Kg7 {[%clk 0:00:36]} 70. Nd7 {[%clk 0:00:12]}  Qc6+ {[%clk 0:00:36]} 71. Ke7 {[%clk 0:00:12]}  Qxd7+ {[%clk 0:00:36]} 72. Kxd7 {[%clk 0:00:13]}  Kxf7 {[%clk 0:00:37]} 73. Kc6 {[%clk 0:00:14]}  g4 {[%clk 0:00:38]} 74. Kd5 {[%clk 0:00:14]}  g3 {[%clk 0:00:39]} 75. Kc4 {[%clk 0:00:15]}  g2 {[%clk 0:00:40]} 76. Kb4 {[%clk 0:00:15]}  g1=Q {[%clk 0:00:40]} 77. Kxa4 {[%clk 0:00:16]}  Qa7+ {[%clk 0:00:41]} 78. Kb5 {[%clk 0:00:17]}  Ke6 {[%clk 0:00:41]} 79. a4 {[%clk 0:00:18]}  Kd5 {[%clk 0:00:42]} 80. a5 {[%clk 0:00:19]}  Qb7+ {[%clk 0:00:42]} 81. Ka4 {[%clk 0:00:19]}  Kc4 {[%clk 0:00:43]} 82. Ka3 {[%clk 0:00:19]}  Qb3# {[%clk 0:00:43]} 0-1


[Site "https://www.chess.com"]

[Event "Titled Tuesday Blitz March 07 Early 2023"]
[White "Matlakov, Maxim"]
[Black "Nogerbek, Kazybek"]
[WhiteFideId "4168003"]
[BlackFideId "13710427"]
[WhiteElo "2666"]
[BlackElo "2501"]
[Result "1-0"]
[Round "09"]
[TimeControl "180+2"]
[Date "2023.03.07"]
[WhiteClock "0:00:51"]
[BlackClock "0:01:06"]

1. e4 {[%clk 0:02:40]}  e5 {[%clk 0:02:54]} 2. Nf3 {[%clk 0:02:40]}  Nc6 {[%clk 0:02:55]} 3. Bb5 {[%clk 0:02:37]}  a6 {[%clk 0:02:55]} 4. Ba4 {[%clk 0:02:37]}  Bc5 {[%clk 0:02:55]} 5. O-O {[%clk 0:02:30]}  Nge7 {[%clk 0:02:55]} 6. c3 {[%clk 0:02:29]}  Ng6 {[%clk 0:02:55]} 7. d4 {[%clk 0:02:29]}  Ba7 {[%clk 0:02:55]} 8. Re1 {[%clk 0:02:29]}  O-O {[%clk 0:02:54]} 9. Bg5 {[%clk 0:02:29]}  f6 {[%clk 0:02:54]} 10. Be3 {[%clk 0:02:29]}  Kh8 {[%clk 0:02:54]} 11. Nbd2 {[%clk 0:02:29]}  d6 {[%clk 0:02:54]} 12. h3 {[%clk 0:02:29]}  Bd7 {[%clk 0:02:55]} 13. Rc1 {[%clk 0:02:25]}  Qe8 {[%clk 0:02:53]} 14. Bc2 {[%clk 0:02:25]}  f5 {[%clk 0:02:53]} 15. exf5 {[%clk 0:02:19]}  Bxf5 {[%clk 0:02:54]} 16. dxe5 {[%clk 0:02:15]}  Bxc2 {[%clk 0:02:47]} 17. Rxc2 {[%clk 0:02:03]}  Ngxe5 {[%clk 0:02:44]} 18. Bxa7 {[%clk 0:01:59]}  Rxa7 {[%clk 0:02:45]} 19. Nxe5 {[%clk 0:01:59]}  Nxe5 {[%clk 0:02:46]} 20. Nc4 {[%clk 0:01:54]}  Ra8 {[%clk 0:02:17]} 21. Nxe5 {[%clk 0:01:51]}  dxe5 {[%clk 0:02:18]} 22. Qd5 {[%clk 0:01:51]}  c6 {[%clk 0:02:03]} 23. Qxe5 {[%clk 0:01:49]}  Qg6 {[%clk 0:02:04]} 24. Rce2 {[%clk 0:01:49]}  h6 {[%clk 0:02:04]} 25. Qe4 {[%clk 0:01:46]}  Qxe4 {[%clk 0:01:59]} 26. Rxe4 {[%clk 0:01:47]}  Rad8 {[%clk 0:02:00]} 27. Re7 {[%clk 0:01:38]}  Rd2 {[%clk 0:01:58]} 28. R1e2 {[%clk 0:01:39]}  Rxe2 {[%clk 0:01:49]} 29. Rxe2 {[%clk 0:01:40]}  Rf5 {[%clk 0:01:50]} 30. g3 {[%clk 0:01:37]}  Kg8 {[%clk 0:01:47]} 31. Kg2 {[%clk 0:01:37]}  Kf7 {[%clk 0:01:48]} 32. f4 {[%clk 0:01:37]}  a5 {[%clk 0:01:46]} 33. Kf3 {[%clk 0:01:37]}  Rd5 {[%clk 0:01:47]} 34. a3 {[%clk 0:01:26]}  a4 {[%clk 0:01:47]} 35. Re4 {[%clk 0:01:20]}  Rd2 {[%clk 0:01:46]} 36. Rxa4 {[%clk 0:01:15]}  c5 {[%clk 0:01:36]} 37. Rc4 {[%clk 0:01:03]}  b6 {[%clk 0:01:24]} 38. b4 {[%clk 0:01:03]}  Rd3+ {[%clk 0:01:25]} 39. Kg4 {[%clk 0:00:59]}  cxb4 {[%clk 0:01:15]} 40. axb4 {[%clk 0:00:58]}  b5 {[%clk 0:01:10]} 41. Rc5 {[%clk 0:00:56]}  g6 {[%clk 0:01:10]} 42. Rxb5 {[%clk 0:00:51]}  h5+ {[%clk 0:01:08]} 43. Kh4 {[%clk 0:00:50]}  Rxc3 {[%clk 0:01:09]} 44. g4 {[%clk 0:00:50]}  hxg4 {[%clk 0:01:06]} 45. hxg4 {[%clk 0:00:51]}  Kf6 {[%clk 0:01:05]} 46. Rb6+ {[%clk 0:00:50]}  Kf7 {[%clk 0:01:06]} 47. Kg5 {[%clk 0:00:51]} 1-0


[Site "https://www.chess.com"]

[Event "Titled Tuesday Blitz March 07 Early 2023"]
[White "Hayrapetyan, Hovik"]
[Black "Shimanov, Aleksandr"]
[WhiteFideId "13302639"]
[BlackFideId "4198603"]
[WhiteElo "2348"]
[BlackElo "2631"]
[Result "0-1"]
[Round "09"]
[TimeControl "180+2"]
[Date "2023.03.07"]
[WhiteClock "0:00:01"]
[BlackClock "0:00:14"]

1. d4 {[%clk 0:03:00]}  g6 {[%clk 0:02:59]} 2. c4 {[%clk 0:03:00]}  Bg7 {[%clk 0:02:59]} 3. Nc3 {[%clk 0:03:01]}  c5 {[%clk 0:02:59]} 4. d5 {[%clk 0:03:01]}  Bxc3+ {[%clk 0:02:59]} 5. bxc3 {[%clk 0:03:02]}  e5 {[%clk 0:03:00]} 6. h4 {[%clk 0:02:57]}  h6 {[%clk 0:02:57]} 7. h5 {[%clk 0:02:48]}  g5 {[%clk 0:02:57]} 8. e4 {[%clk 0:02:36]}  d6 {[%clk 0:02:51]} 9. g4 {[%clk 0:02:32]}  Nf6 {[%clk 0:02:34]} 10. f3 {[%clk 0:02:31]}  Qa5 {[%clk 0:02:27]} 11. Bd2 {[%clk 0:02:30]}  Nbd7 {[%clk 0:02:26]} 12. a4 {[%clk 0:02:22]}  Nb6 {[%clk 0:02:25]} 13. Bd3 {[%clk 0:02:22]}  Bd7 {[%clk 0:02:25]} 14. Ne2 {[%clk 0:02:16]}  a6 {[%clk 0:02:11]} 15. O-O {[%clk 0:01:16]}  Nxa4 {[%clk 0:01:38]} 16. Bc2 {[%clk 0:01:02]}  b5 {[%clk 0:01:38]} 17. cxb5 {[%clk 0:01:02]}  axb5 {[%clk 0:01:39]} 18. c4 {[%clk 0:01:02]}  Qc7 {[%clk 0:01:39]} 19. cxb5 {[%clk 0:00:53]}  Nb6 {[%clk 0:01:40]} 20. Rxa8+ {[%clk 0:00:48]}  Nxa8 {[%clk 0:01:40]} 21. Qa1 {[%clk 0:00:47]}  O-O {[%clk 0:01:27]} 22. Qa6 {[%clk 0:00:43]}  Rb8 {[%clk 0:01:24]} 23. Rb1 {[%clk 0:00:40]}  Qb6 {[%clk 0:01:21]} 24. Qxb6 {[%clk 0:00:24]}  Nxb6 {[%clk 0:01:22]} 25. Ba5 {[%clk 0:00:20]}  Nc4 {[%clk 0:01:19]} 26. Bc7 {[%clk 0:00:20]}  Rxb5 {[%clk 0:01:17]} 27. Rxb5 {[%clk 0:00:14]}  Bxb5 {[%clk 0:01:17]} 28. Nc3 {[%clk 0:00:13]}  Bd7 {[%clk 0:01:07]} 29. Kf2 {[%clk 0:00:09]}  Ne8 {[%clk 0:01:05]} 30. Bd8 {[%clk 0:00:09]}  Na3 {[%clk 0:00:50]} 31. Bd3 {[%clk 0:00:06]}  Kf8 {[%clk 0:00:47]} 32. Ke3 {[%clk 0:00:06]}  c4 {[%clk 0:00:34]} 33. Be2 {[%clk 0:00:05]}  Nc2+ {[%clk 0:00:34]} 34. Kf2 {[%clk 0:00:03]}  Na3 {[%clk 0:00:30]} 35. Bd1 {[%clk 0:00:02]}  Nb5 {[%clk 0:00:25]} 36. Nxb5 {[%clk 0:00:02]}  Bxb5 {[%clk 0:00:26]} 37. Be2 {[%clk 0:00:02]}  c3 {[%clk 0:00:21]} 38. Ba5 {[%clk 0:00:02]}  c2 {[%clk 0:00:19]} 39. Bd2 {[%clk 0:00:02]}  Ba4 {[%clk 0:00:19]} 40. Bd3 {[%clk 0:00:01]}  Nf6 {[%clk 0:00:19]} 41. Ke2 {[%clk 0:00:01]}  Nd7 {[%clk 0:00:20]} 42. Be3 {[%clk 0:00:01]}  f5 {[%clk 0:00:14]} 0-1


[Site "https://www.chess.com"]

[Event "Titled Tuesday Blitz March 07 Early 2023"]
[White "Bok, Benjamin"]
[Black "Krzyzanowski, Marcin"]
[WhiteFideId "1017063"]
[BlackFideId "1132199"]
[WhiteElo "2658"]
[BlackElo "2471"]
[Result "1-0"]
[Round "09"]
[TimeControl "180+2"]
[Date "2023.03.07"]
[WhiteClock "0:00:10"]
[BlackClock "0:00:08"]

1. d4 {[%clk 0:03:00]}  Nf6 {[%clk 0:02:59]} 2. c4 {[%clk 0:03:00]}  e6 {[%clk 0:02:55]} 3. Nc3 {[%clk 0:02:58]}  Bb4 {[%clk 0:02:55]} 4. Qc2 {[%clk 0:02:58]}  O-O {[%clk 0:02:52]} 5. a3 {[%clk 0:02:58]}  Bxc3+ {[%clk 0:02:52]} 6. Qxc3 {[%clk 0:02:59]}  d5 {[%clk 0:02:49]} 7. Bg5 {[%clk 0:02:55]}  h6 {[%clk 0:02:47]} 8. Bxf6 {[%clk 0:02:55]}  Qxf6 {[%clk 0:02:48]} 9. Nf3 {[%clk 0:02:55]}  c6 {[%clk 0:02:43]} 10. h4 {[%clk 0:02:52]}  Nd7 {[%clk 0:02:40]} 11. g4 {[%clk 0:02:51]}  Qe7 {[%clk 0:02:28]} 12. g5 {[%clk 0:02:50]}  h5 {[%clk 0:02:27]} 13. e3 {[%clk 0:02:48]}  g6 {[%clk 0:02:23]} 14. Rc1 {[%clk 0:02:46]}  Re8 {[%clk 0:02:21]} 15. Be2 {[%clk 0:02:40]}  dxc4 {[%clk 0:02:11]} 16. Bxc4 {[%clk 0:02:39]}  b6 {[%clk 0:02:09]} 17. Bd3 {[%clk 0:02:31]}  Bb7 {[%clk 0:02:08]} 18. Be4 {[%clk 0:02:32]}  Rac8 {[%clk 0:02:08]} 19. O-O {[%clk 0:02:09]}  f5 {[%clk 0:01:48]} 20. gxf6 {[%clk 0:02:04]}  Nxf6 {[%clk 0:01:47]} 21. Bxg6 {[%clk 0:01:06]}  Qg7 {[%clk 0:01:46]} 22. Ne5 {[%clk 0:01:04]}  c5 {[%clk 0:01:26]} 23. f3 {[%clk 0:00:46]}  Red8 {[%clk 0:01:07]} 24. Qd2 {[%clk 0:00:31]}  Nd7 {[%clk 0:00:53]} 25. Qg2 {[%clk 0:00:29]}  Nxe5 {[%clk 0:00:52]} 26. dxe5 {[%clk 0:00:30]}  Qxe5 {[%clk 0:00:45]} 27. Be4+ {[%clk 0:00:18]}  Kh8 {[%clk 0:00:45]} 28. Bxb7 {[%clk 0:00:18]}  Rg8 {[%clk 0:00:43]} 29. Bxc8 {[%clk 0:00:18]}  Qxe3+ {[%clk 0:00:43]} 30. Kh1 {[%clk 0:00:18]}  Rxg2 {[%clk 0:00:38]} 31. Kxg2 {[%clk 0:00:19]}  Qd2+ {[%clk 0:00:34]} 32. Kh3 {[%clk 0:00:20]}  Qxb2 {[%clk 0:00:25]} 33. Bxe6 {[%clk 0:00:19]}  Qxa3 {[%clk 0:00:25]} 34. Rcd1 {[%clk 0:00:15]}  Qe3 {[%clk 0:00:24]} 35. Bd5 {[%clk 0:00:15]}  b5 {[%clk 0:00:20]} 36. Rg1 {[%clk 0:00:14]}  Qe7 {[%clk 0:00:14]} 37. Be4 {[%clk 0:00:13]}  Qe6+ {[%clk 0:00:13]} 38. Kh2 {[%clk 0:00:13]}  Qe7 {[%clk 0:00:13]} 39. Rg5 {[%clk 0:00:12]}  c4 {[%clk 0:00:10]} 40. Rdg1 {[%clk 0:00:10]}  Qd6+ {[%clk 0:00:09]} 41. Kh1 {[%clk 0:00:10]}  Qe6 {[%clk 0:00:08]} 42. Rxh5+ {[%clk 0:00:10]} 1-0


[Site "https://www.chess.com"]